fUSD/lending_fUSD_20260311
["ID","MTS","AMOUNT","RATE_DAILY","PERIOD"]
[408230695,1773269446285,-500.0,0.0004269,120]
[408230696,1773269446294,-500.0,0.0004269,120]
[408230697,1773269446303,-500.0,0.0004269,120]
[408230698,1773269446312,-500.0,0.0004269,120]
[408230699,1773269446322,-500.0,0.0004269,120]
[408230700,1773269446330,-500.0,0.0004269,120]
[408230701,1773269446339,-500.0,0.0004269,120]
[408230702,1773269446347,-541.94683578,0.0004269,120]
[408230703,1773269446359,-62.05316422,0.0004269,120]
[408230704,1773269446369,-500.0,0.0004269,120]
[408230705,1773269446378,-500.0,0.0004269,120]
[408230706,1773269446387,-500.0,0.0004269,120]
[408230707,1773269446396,-500.0,0.0004269,120]
[408230708,1773269446405,-500.0,0.0004269,120]
[408230709,1773269446415,-500.0,0.0004269,120]
[408230710,1773269446424,-500.0,0.0004269,120]
[408230711,1773269446434,-500.0,0.0004269,120]
[408230712,1773269446443,-500.0,0.0004269,120]
[408230713,1773269446452,-500.0,0.0004269,120]
[408230714,1773269446462,-500.0,0.0004269,120]
[408230716,1773269446626,-500.0,0.0004269,120]
[408230717,1773269446636,-500.0,0.0004269,120]
[408230718,1773269446646,-500.0,0.0004269,120]
[408230719,1773269446655,-500.0,0.0004269,120]
[408230720,1773269446666,-500.0,0.0004269,120]
[408230721,1773269446675,-500.0,0.0004269,120]
[408230722,1773269446685,-500.0,0.0004269,120]
[408230723,1773269446694,-352.884102,0.00042782,2]
[408230724,1773269446703,-300.0,0.00042782,2]
[408230725,1773269446714,-300.0,0.00042782,2]
[408230726,1773269446724,-300.0,0.00042782,2]
[408230727,1773269446733,-447.88123414,0.00042782,2]
[408230728,1773269446743,-300.0,0.00042782,2]
[408230730,1773269446752,-300.0,0.00042782,2]
[408230731,1773269446762,-302.22433017,0.00042782,2]
[408230732,1773269446771,-300.0,0.00042782,2]
[408230733,1773269446780,-300.0,0.00042782,2]
[408230735,1773269446789,-300.0,0.00042782,2]
[408230736,1773269446798,-520.03833217,0.00042782,2]
[408230737,1773269446809,-307.08561638,0.00042782,2]
[408230738,1773269446822,-300.0,0.00042782,2]
[408230739,1773269446831,-1050.0,0.0004279,30]
[408230740,1773269446840,-2696.08229643,0.00042916,14]
[408230741,1773269446850,-150.0,0.00042952,2]
[408230742,1773269446860,-1280.0,0.00042952,2]
[408230743,1773269446869,-150.0,0.00042952,2]
[408230744,1773269446879,-922.0,0.00042952,2]
[408230745,1773269446890,-1000.0,0.00043,60]
[408230746,1773269446899,-163.25092449,0.00043068,120]
[408230747,1773269446915,-500.0,0.0004269,120]
[408230749,1773269446924,-36.74907551,0.00043068,120]
[408230750,1773269446934,-200.0,0.00043068,120]
[408230751,1773269446943,-1000.0,0.0004315,60]
[408230752,1773269446953,-158.0,0.00043234,120]
[408230753,1773269446963,-1417.89194368,0.00043491,15]
[408230754,1773269446979,-150.0,0.00030952,2]
[408230755,1773269446989,-304.88,0.00043491,15]
[408230756,1773269447000,-4188.85416277,0.00043491,15]
[408230757,1773269447009,-1000.0,0.0004383,30]
[408230758,1773269447018,-150.0,0.00044281,120]
[408230759,1773269447028,-5911.62610645,0.00044292,15]
[408230760,1773269447037,-2000.0,0.000447,2]
[408230761,1773269447046,-1000.0,0.00045,30]
[408230762,1773269447055,-200.0,0.00045,2]
[408230763,1773269447066,-189.12,0.00045,30]
[408230764,1773269447077,-337.62,0.00045,30]
[408230765,1773269447087,-3288.0,0.00045088,7]
[408230766,1773269447099,-5911.62610645,0.00045093,15]
[408230767,1773269447108,-5911.62610645,0.00045894,15]
[408230768,1773269447118,-1000.0,0.0004595,30]
[408230769,1773269447130,-150.0,0.00045952,2]
[408230770,1773269447140,-1280.0,0.00045952,2]
[408230771,1773269447150,-922.0,0.00045952,2]
[408230772,1773269447159,-433.13697889,0.00046388,30]
[408230773,1773269447168,-150.0,0.00046495,120]
[408230774,1773269447177,-10145.84683209,0.00046575,2]
[408230775,1773269447186,-5911.62610645,0.00046696,15]
[408230776,1773269447195,-1000.0,0.00047,90]
[408230777,1773269447206,-189.12,0.0004725,30]
[408230778,1773269447215,-5911.62610645,0.00047497,15]
[408230779,1773269447224,-150.0,0.000475,60]
[408230780,1773269447234,-406.71543413,0.00047527,2]
[408230781,1773269447243,-3382.26,0.00047535,14]
[408230782,1773269447252,-841.6,0.00047535,14]
[408230783,1773269447263,-151.03,0.00047555,2]
[408230784,1773269447273,-1510.09704327,0.00047557,3]
[408230785,1773269447282,-5601.49,0.00047565,2]
[408230786,1773269447292,-477.7417341,0.00047589,120]
[408230787,1773269447302,-153.40222115,0.00047684,120]
[408230788,1773269447311,-2981.99,0.00048273,120]
[408230789,1773269447320,-5911.62610645,0.00048298,15]
[408230790,1773269447329,-221.47892259,0.00048356,60]
[408230791,1773269447338,-500.0,0.00048356,60]
[408230792,1773269447348,-2000.0,0.000484,2]
[408230793,1773269447358,-1394.48932219,0.00048412,2]
[408230794,1773269447367,-508.0,0.0004855,31]
[408230795,1773269447375,-150.0,0.0004882,120]
[408230796,1773269447385,-1280.0,0.00048952,2]
[408230797,1773269447395,-1000.0,0.00048978,2]
[408230798,1773269447405,-5911.62610645,0.00049099,15]
[408230799,1773269447414,-5000.0,0.000491,120]
[408230800,1773269447424,-1000.0,0.00049165,120]
[408230801,1773269447433,-1000.0,0.00049165,120]
[408230802,1773269447442,-1000.0,0.00049165,120]
[408230803,1773269447451,-1000.0,0.00049165,120]
[408230804,1773269447461,-1000.0,0.00049165,120]
[408230805,1773269447471,-1000.0,0.00049165,120]
[408230806,1773269447480,-266.452,0.00049165,120]
[408230807,1773269447490,-1394.48932219,0.00049199,2]
[408230808,1773269447499,-2000.0,0.0004941,120]
[408230809,1773269447509,-2000.0,0.0004941,120]
[408230810,1773269447517,-2000.0,0.0004941,120]
[408230811,1773269447527,-2000.0,0.0004941,120]
[408230812,1773269447535,-2000.0,0.0004941,120]
[408230813,1773269447544,-615.74948312,0.00049452,60]
[408230814,1773269447553,-2000.0,0.000496,7]
[408230815,1773269447562,-189.12,0.00049613,30]
[408230816,1773269447571,-13202.29,0.0004969,120]
[408230817,1773269447580,-2000.0,0.000498,7]
[408230818,1773269447589,-158.17,0.00049828,14]
[408230819,1773269447598,-204.20300695,0.0004989,22]
[408230820,1773269447607,-175.76,0.000499,60]
[408230821,1773269447616,-626.98106592,0.000499,30]
[408230822,1773269447625,-2000.0,0.000499,7]
[408230823,1773269447634,-5911.62610645,0.000499,15]
[408230824,1773269447643,-2929.53665168,0.000499,2]
[408230825,1773269447653,-4653.17003432,0.000499,2]
[408230826,1773269603869,508.0,0.000171,2]
[408230827,1773269645523,1095.375807,0.0002,2]
[408230829,1773269950171,500308.2448544,0.0002,2]
[408230842,1773270631392,-279.42,0.00016877,2]
[408230843,1773270631402,-464.53379937,0.00016939,2]
[408230844,1773270631414,-135.46620063,0.00016939,2]
[408230845,1773270631423,-252.77379937,0.00017,2]
[408230846,1773270631434,-256.22620063,0.00017,2]
[408230847,1773270631443,-149.73079811,0.00017109,2]
[408230848,1773270631458,-150.26920189,0.00017109,2]
[408230849,1773270631468,-254.94142487,0.00017109,2]
[408230850,1773270631480,-45.05857513,0.00017109,2]
[408230851,1773270631491,-300.0,0.00017109,2]
[408230852,1773270631500,-183.36683852,0.00017109,2]
[408230853,1773270631512,-1016.63316148,0.00017109,2]
[408230854,1773270631521,-14208.53335112,0.0001711,2]
[408230855,1773270631530,-279.42,0.00017765,2]
[408230856,1773270631539,-600.0,0.00018565,2]
[408230857,1773270631548,-250.0,0.00018565,2]
[408230858,1773270631558,-279.42,0.00018654,2]
[408230859,1773270631567,-371.0,0.00018685,2]
[408230860,1773270631576,-1680.0,0.00018777,2]
[408230861,1773270631585,-279.42,0.00019542,2]
[408230862,1773270631594,-75443.0641,0.0001977,2]
[408230863,1773270631603,-23011.60949671,0.0001987,2]
[408230864,1773270631613,-10711.2166,0.000199,2]
[408230865,1773270631622,-190.93937087,0.000199,2]
[408230866,1773270631631,-14396.06609583,0.000199,2]
[408230867,1773270631640,-5654.20061888,0.000199,2]
[408230868,1773270631652,-15945.28205074,0.000199,2]
[408230869,1773270631663,-27604.81048081,0.000199,2]
[408230870,1773270631672,-500.0,0.00019973,2]
[408230871,1773270631681,-376.21289044,0.0001998,2]
[408230872,1773270631691,-151.0,0.00019988,2]
[408230873,1773270631700,-151.0,0.00019988,2]
[408230874,1773270631710,-151.0,0.00019988,2]
[408230875,1773270631719,-151.0,0.00019988,2]
[408230876,1773270631728,-151.0,0.00019988,2]
[408230877,1773270631738,-151.0,0.00019988,2]
[408230878,1773270631749,-500.0,0.00019999,2]
[408230879,1773270631758,-500.0,0.00019999,2]
[408230880,1773270631770,-500.0,0.00019999,2]
[408230881,1773270631789,-500.0,0.00019999,2]
[408230882,1773270631799,-500.0,0.00019999,2]
[408230883,1773270631810,-500.0,0.00019999,2]
[408230884,1773270631820,-500.0,0.00019999,2]
[408230885,1773270631831,-500.0,0.00019999,2]
[408230886,1773270631842,-500.0,0.00019999,2]
[408230887,1773270631853,-500.0,0.00019999,2]
[408230888,1773270631864,-500.0,0.00019999,2]
[408230889,1773270631874,-500.0,0.00019999,2]
[408230890,1773270631884,-500.0,0.00019999,2]
[408230891,1773270631894,-500.0,0.00019999,2]
[408230892,1773270631904,-500.0,0.00019999,2]
[408230893,1773270631914,-500.0,0.00019999,2]
[408230894,1773270631923,-500.0,0.00019999,2]
[408230895,1773270631932,-500.0,0.00019999,2]
[408230896,1773270631942,-500.0,0.00019999,2]
[408230897,1773270631952,-500.0,0.00019999,2]
[408230898,1773270631961,-500.0,0.00019999,2]
[408230899,1773270631971,-500.0,0.00019999,2]
[408230900,1773270631981,-500.0,0.00019999,2]
[408230902,1773270631992,-315.60748607,0.00019999,2]
[408230903,1773270632001,-500.0,0.00019999,2]
[408230904,1773270632012,-500.0,0.00019999,2]
[408230905,1773270632024,-500.0,0.00019999,2]
[408230906,1773270632034,-500.0,0.00019999,2]
[408230907,1773270632046,-500.0,0.00019999,2]
[408230908,1773270632056,-500.0,0.00019999,2]
[408230909,1773270632066,-500.0,0.00019999,2]
[408230910,1773270632077,-500.0,0.00019999,2]
[408230911,1773270632088,-500.0,0.00019999,2]
[408230912,1773270632098,-500.0,0.00019999,2]
[408230913,1773270632108,-500.0,0.00019999,2]
[408230914,1773270632118,-500.0,0.00019999,2]
[408230915,1773270632128,-500.0,0.00019999,2]
[408230916,1773270632139,-500.0,0.00019999,2]
[408230917,1773270632152,-500.0,0.00019999,2]
[408230918,1773270632162,-500.0,0.00019999,2]
[408230919,1773270632171,-500.0,0.00019999,2]
[408230920,1773270632182,-500.0,0.00019999,2]
[408230921,1773270632194,-500.0,0.00019999,2]
[408230922,1773270632203,-500.0,0.00019999,2]
[408230923,1773270632213,-500.0,0.00019999,2]
[408230924,1773270632225,-500.0,0.00019999,2]
[408230925,1773270632235,-500.0,0.00019999,2]
[408230926,1773270632245,-500.0,0.00019999,2]
[408230927,1773270632255,-500.0,0.00019999,2]
[408230928,1773270632265,-500.0,0.00019999,2]
[408230929,1773270632275,-500.0,0.00019999,2]
[408230930,1773270632284,-500.0,0.00019999,2]
[408230931,1773270632294,-500.0,0.00019999,2]
[408230932,1773270632303,-500.0,0.00019999,2]
[408230933,1773270632313,-500.0,0.00019999,2]
[408230934,1773270632322,-500.0,0.00019999,2]
[408230935,1773270632332,-500.0,0.00019999,2]
[408230936,1773270632342,-500.0,0.00019999,2]
[408230937,1773270632352,-500.0,0.00019999,2]
[408230938,1773270632362,-500.0,0.00019999,2]
[408230939,1773270632372,-500.0,0.00019999,2]
[408230940,1773270632383,-500.0,0.00019999,2]
[408230941,1773270632393,-500.0,0.00019999,2]
[408230942,1773270632404,-500.0,0.00019999,2]
[408230943,1773270632414,-500.0,0.00019999,2]
[408230944,1773270632424,-500.0,0.00019999,2]
[408230945,1773270632435,-500.0,0.00019999,2]
[408230946,1773270632445,-500.0,0.00019999,2]
[408230947,1773270632455,-500.0,0.00019999,2]
[408230948,1773270632466,-500.0,0.00019999,2]
[408230949,1773270632476,-362.81734855,0.00019999,2]
[408230950,1773270632486,-500.0,0.00019999,2]
[408230951,1773270632496,-500.0,0.00019999,2]
[408230952,1773270632506,-500.0,0.00019999,2]
[408230953,1773270632515,-500.0,0.00019999,2]
[408230954,1773270632536,-500.0,0.00019999,2]
[408230955,1773270632553,-500.0,0.00019999,2]
[408230956,1773270632563,-500.0,0.00019999,2]
[408230957,1773270632574,-500.0,0.00019999,2]
[408230958,1773270632584,-500.0,0.00019999,2]
[408230959,1773270632595,-245.38630132,0.00019999,2]
[408230960,1773270632605,-500.0,0.00019999,2]
[408230961,1773270632616,-490.21971105,0.00019999,2]
[408230962,1773270632633,-9.78028895,0.00019999,2]
[408230963,1773270632644,-500.0,0.00019999,2]
[408230964,1773270632654,-500.0,0.00019999,2]
[408230965,1773270632666,-500.0,0.00019999,2]
[408230966,1773270632676,-500.0,0.00019999,2]
[408230967,1773270632688,-500.0,0.00019999,2]
[408230968,1773270632699,-500.0,0.00019999,2]
[408230969,1773270632710,-500.0,0.00019999,2]
[408230970,1773270632723,-500.0,0.00019999,2]
[408230971,1773270632734,-500.0,0.00019999,2]
[408230972,1773270632746,-500.0,0.00019999,2]
[408230973,1773270632757,-500.0,0.00019999,2]
[408230974,1773270632767,-500.0,0.00019999,2]
[408230975,1773270632778,-500.0,0.00019999,2]
[408230976,1773270632789,-500.0,0.00019999,2]
[408230977,1773270632800,-500.0,0.00019999,2]
[408230978,1773270632810,-500.0,0.00019999,2]
[408230979,1773270632821,-176.68252931,0.00019999,2]
[408230980,1773270632831,-500.0,0.00019999,2]
[408230981,1773270632842,-12084.06218887,0.0002,2]
[408230982,1773270632854,-1125.14410807,0.0002,2]
[408230983,1773270632866,-452.67999994,0.0002,2]
[408230985,1773270637485,-692.12501114,0.0002,2]
[408230986,1773270637498,-424.06072804,0.0002,2]
[408230987,1773270637509,-1895.51665775,0.0002,2]
[408230988,1773270637521,-520.88748994,0.0002,2]
[408231000,1773270639804,-1127.27365338,0.0002,2]
[408231001,1773270639818,-434.45000005,0.0002,2]
[408231002,1773270639831,-1198.90497501,0.0002,2]
[408231003,1773270640083,-670.59943,0.0002,2]
[408231004,1773270640096,-786.15248583,0.0002,2]
[408231015,1773270642536,-799.48481584,0.0002,2]
[408231016,1773270642650,-58041.52114033,0.0002,2]
[408231017,1773270642662,-4032.30469259,0.0002,2]
[408231018,1773270642674,-670.98140393,0.0002,2]
[408231019,1773270642718,-4871.77153257,0.0002,2]
[408231029,1773270645325,-500.0,0.0002,2]
[408231030,1773270645384,-10308.9999999,0.0002,2]
[408231031,1773270645610,-453.8549995,0.0002,2]
[408231032,1773270645622,-552.8612,0.0002,2]
[408231038,1773270646666,-1007.16027894,0.0002,2]
[408231047,1773271831622,-250.0,0.00015,2]
[408231048,1773271831634,-449.0329701,0.00015,30]
[408231049,1773271831644,-339.563129,0.00015,30]
[408231050,1773271831654,-300.0,0.0001575,2]
[408231051,1773271831664,-1200.0,0.00016498,2]
[408231052,1773271831674,-550.0,0.00016499,2]
[408231053,1773271831686,-300.0,0.00016499,2]
[408231054,1773271831695,-600.0,0.000165,2]
[408231055,1773271831709,-250.0,0.000165,2]
[408231056,1773271831719,-374.7733,0.000165,2]
[408231057,1773271831730,-194.5969468,0.000165,2]
[408231058,1773271831742,-250.0,0.000165,2]
[408231059,1773271831753,-600.0,0.000165,2]
[408231060,1773271831767,-5000.0,0.000165,2]
[408231061,1773271831777,-500.0,0.000165,2]
[408231062,1773271831788,-500.0,0.000165,2]
[408231063,1773271831800,-500.0,0.000165,2]
[408231064,1773271831810,-300.0,0.00017,2]
[408231065,1773271831819,-507.0,0.00017,2]
[408231068,1773271831829,-500.0,0.00017048,2]
[408231070,1773271831838,-500.0,0.00017048,2]
[408231072,1773271831848,-260.0,0.00017621,2]
[408231074,1773271831858,-1680.0,0.00018119,2]
[408231076,1773271831867,-166.66,0.00018255,2]
[408231079,1773271831878,-166.66,0.00018639,2]
[408231081,1773271831888,-318.091324,0.00018782,7]
[408231083,1773271831898,-166.66,0.00019024,2]
[408231085,1773271831908,-166.66,0.00019408,2]
[408231086,1773271831918,-200.0,0.00019522,2]
[408231087,1773271831927,-378.76476108,0.00019592,2]
[408231088,1773271831937,-992.5298,0.0001977,2]
[408231089,1773271831947,-166.66,0.00019792,2]
[408231090,1773271831956,-1583.586,0.00019799,2]
[408231091,1773271831966,-778.0,0.00019899,2]
[408231092,1773271831977,-549.1572504,0.000199,2]
[408231093,1773271831988,-7532.52589628,0.000199,2]
[408231094,1773271831997,-190.93937086,0.000199,2]
[408231095,1773271832007,-500.0,0.00019973,2]
[408231096,1773271832016,-65936.4739548,0.00019987,2]
[408231097,1773271832029,-3282.40019772,0.00019987,2]
[408231098,1773271832038,-1208.77957433,0.00019999,2]
[408231099,1773271832049,-1483.42040625,0.00019999,2]
[408231100,1773271832058,-938.08263821,0.00019999,2]
[408231101,1773271832068,-506.85,0.00019999,2]
[408231102,1773271832078,-500.0,0.00019999,2]
[408231103,1773271832087,-500.0,0.00019999,2]
[408231104,1773271832097,-500.0,0.00019999,2]
[408231105,1773271832106,-500.0,0.00019999,2]
[408231106,1773271832116,-500.0,0.00019999,2]
[408231107,1773271832125,-500.0,0.00019999,2]
[408231108,1773271832135,-500.0,0.00019999,2]
[408231109,1773271832144,-500.0,0.00019999,2]
[408231110,1773271832154,-500.0,0.00019999,2]
[408231111,1773271832164,-500.0,0.00019999,2]
[408231112,1773271832174,-220.92524025,0.00019999,2]
[408231113,1773271832184,-500.0,0.00019999,2]
[408231114,1773271832194,-500.0,0.00019999,2]
[408231115,1773271832205,-500.0,0.00019999,2]
[408231116,1773271832215,-500.0,0.00019999,2]
[408231117,1773271832226,-500.0,0.00019999,2]
[408231118,1773271832236,-500.0,0.00019999,2]
[408231119,1773271832245,-187.45369864,0.00019999,2]
[408231120,1773271832255,-39776.73658432,0.0002,2]
[408231121,1773271832267,-400.45,0.0002,2]
[408231122,1773271832283,-1167.00146,0.0002,2]
[408231123,1773271832296,-300.0,0.0002,2]
[408231124,1773271837664,-1729.64,0.00016003,2]
[408231125,1773271837674,-2753.66153606,0.0002,2]
[408231126,1773271837685,-325.02024,0.0002,2]
[408231133,1773271840080,-1947.79679069,0.0002,2]
[408231134,1773271840091,-234505.36306223,0.0002,2]
[408231135,1773271840414,-342.10734556,0.000199,2]
[408231136,1773271840426,-8725.1679012,0.000199,2]
[408231145,1773271845533,-530.10215046,0.000199,2]
[408231146,1773271845543,-7547.89935483,0.0002,2]
[408231147,1773271845595,-17912.5995511,0.0002,2]
[408231148,1773271845606,-934.1707,0.0002,2]
[408231149,1773271845880,-2033.9295,0.0002,2]
[408231150,1773271845891,-1151.30067516,0.0002,2]
[408231151,1773271845902,-363.44102398,0.0002,2]
[408231170,1773272948288,162.51,9.299e-05,2]
[408231171,1773272948534,162.51,0.00010628,2]
[408231172,1773272948753,162.51,0.00011956,2]
[408231173,1773272948960,162.51,0.00013285,2]
[408231180,1773273031715,-162.51,0.00014613,2]
[408231181,1773273031726,-166.35,0.00015932,2]
[408231182,1773273031736,-162.51,0.00015942,2]
[408231183,1773273031745,-188.70030793,0.00016075,2]
[408231184,1773273031757,-500.0,0.000163,2]
[408231185,1773273031767,-150.0,0.000164,2]
[408231186,1773273031776,-213.0,0.000164,2]
[408231187,1773273031786,-97.60142196,0.000164,2]
[408231188,1773273031798,-307.84158309,0.000164,2]
[408231189,1773273031808,-277.43,0.00016438,2]
[408231190,1773273031817,-507.0,0.00017,2]
[408231191,1773273031826,-162.51,0.0001727,2]
[408231192,1773273031837,-500.0,0.00017342,2]
[408231193,1773273031845,-39.69592022,0.00018,2]
[408231194,1773273031857,-160.30407978,0.00018,2]
[408231195,1773273032014,-500.0,0.00018137,2]
[408231197,1773273032029,-162.51,0.00018599,2]
[408231199,1773273032038,-150.0,0.00018745,2]
[408231201,1773273032048,-32.54989342,0.00018786,2]
[408231203,1773273032059,-467.45010658,0.00018786,2]
[408231204,1773273032067,-32.54989342,0.00019009,2]
[408231205,1773273032079,-284.15203215,0.00019009,2]
[408231206,1773273032090,-883.29807443,0.00019009,2]
[408231207,1773273032102,-1104.77,0.0001901,2]
[408231208,1773273032112,-302.18929282,0.00019354,2]
[408231209,1773273032123,-1697.81070718,0.00019354,2]
[408231210,1773273032132,-200.0,0.00019425,2]
[408231211,1773273032142,-722.0,0.00019497,2]
[408231212,1773273032155,-1720.018,0.00019497,2]
[408231213,1773273032165,-169.169,0.00019497,2]
[408231214,1773273032175,-41776.0155,0.000197,2]
[408231215,1773273032183,-500.0,0.00019726,2]
[408231216,1773273032192,-150.0,0.00019726,2]
[408231217,1773273032201,-500.0,0.00019726,2]
[408231218,1773273032210,-500.0,0.00019726,2]
[408231219,1773273032219,-500.0,0.00019726,2]
[408231220,1773273032228,-500.0,0.00019726,2]
[408231221,1773273032238,-150.0,0.00019726,2]
[408231222,1773273032248,-500.0,0.00019726,2]
[408231223,1773273032258,-500.0,0.00019726,2]
[408231224,1773273032268,-150.0,0.00019726,2]
[408231225,1773273032277,-500.0,0.00019726,2]
[408231226,1773273032287,-500.0,0.00019781,2]
[408231227,1773273032295,-200.0,0.00019781,2]
[408231228,1773273032305,-500.0,0.00019781,2]
[408231229,1773273032314,-500.0,0.00019781,2]
[408231230,1773273032323,-500.0,0.00019781,2]
[408231231,1773273032332,-500.0,0.00019781,2]
[408231232,1773273032341,-500.0,0.00019781,2]
[408231233,1773273032350,-500.0,0.00019781,2]
[408231234,1773273032359,-150.0,0.00019781,2]
[408231235,1773273032367,-500.0,0.00019781,2]
[408231236,1773273032376,-911.50029606,0.000198,2]
[408231237,1773273032385,-911.50029598,0.00019811,2]
[408231238,1773273032395,-911.50029598,0.00019822,2]
[408231239,1773273032404,-911.50029598,0.00019833,2]
[408231240,1773273032413,-500.0,0.00019836,2]
[408231241,1773273032422,-494.0,0.00019836,2]
[408231242,1773273032431,-500.0,0.00019836,2]
[408231243,1773273032439,-500.0,0.00019836,2]
[408231244,1773273032448,-597.75730998,0.00019836,2]
[408231245,1773273032457,-500.0,0.00019836,2]
[408231246,1773273032466,-500.0,0.00019836,2]
[408231247,1773273032475,-200.0,0.00019836,2]
[408231248,1773273032484,-500.0,0.00019836,2]
[408231249,1773273032494,-911.50029598,0.00019844,2]
[408231250,1773273032502,-911.50029598,0.00019856,2]
[408231251,1773273032511,-911.50029598,0.00019867,2]
[408231252,1773273032520,-502.48786936,0.00019873,2]
[408231253,1773273032529,-500.0,0.00019873,2]
[408231254,1773273032538,-637.10281941,0.00019873,2]
[408231255,1773273032547,-500.0,0.00019873,2]
[408231256,1773273032556,-500.0,0.00019873,2]
[408231257,1773273032567,-500.0,0.00019873,2]
[408231258,1773273032576,-500.0,0.00019873,2]
[408231259,1773273032586,-911.50029598,0.00019878,2]
[408231260,1773273032597,-911.50029598,0.00019889,2]
[408231261,1773273032606,-500.0,0.0001989,2]
[408231262,1773273032615,-500.0,0.0001989,2]
[408231263,1773273032627,-500.0,0.0001989,2]
[408231264,1773273032636,-354.16152207,0.00019899,2]
[408231265,1773273032645,-252912.86927493,0.000199,2]
[408231266,1773273032657,-28540.3052271,0.000199,2]
[408231267,1773273032667,-7746.24198389,0.000199,2]
[408231268,1773273032678,-630.75339574,0.000199,2]
[408231269,1773273032708,-1552.98,0.000199,2]
[408231274,1773273037784,-7520.0,0.000199,2]
[408231275,1773273037795,-1867.36133801,0.000199,2]
[408231276,1773273037907,-1001.26196048,0.000199,2]
[408231283,1773273040239,-150.0,0.00019599,2]
[408231284,1773273040248,-500.0,0.00019599,2]
[408231285,1773273040257,-500.0,0.00019654,2]
[408231286,1773273040266,-500.0,0.00019709,2]
[408231287,1773273040275,-500.0,0.00019763,2]
[408231288,1773273040284,-5631.63211985,0.000199,2]
[408231289,1773273040293,-470.70621462,0.000199,2]
[408231290,1773273040303,-281.03838947,0.000199,6]
[408231291,1773273040312,-909.51611205,0.000199,6]
[408231292,1773273040321,-560.8032151,0.000199,6]
[408231293,1773273040331,-719.23579602,0.000199,6]
[408231294,1773273040340,-840.56804073,0.000199,6]
[408231295,1773273040349,-911.50029598,0.000199,2]
[408231296,1773273040358,-6398.25159814,0.000199,2]
[408231297,1773273040368,-190.93937086,0.000199,2]
[408231298,1773273040377,-374.07,0.00019902,2]
[408231299,1773273040386,-229.0,0.0001993,2]
[408231300,1773273040395,-556.0,0.00019945,2]
[408231301,1773273040403,-344.0,0.00019945,2]
[408231302,1773273040412,-500.0,0.00019973,2]
[408231303,1773273040421,-500.0,0.00019973,2]
[408231304,1773273040430,-500.0,0.00019973,2]
[408231305,1773273040439,-596.63427033,0.00019973,2]
[408231306,1773273040447,-500.0,0.00019973,2]
[408231307,1773273040456,-500.0,0.00019973,2]
[408231308,1773273040465,-500.0,0.00019973,2]
[408231309,1773273040473,-500.0,0.00019973,2]
[408231310,1773273040482,-500.0,0.00019973,2]
[408231311,1773273040491,-500.0,0.00019973,2]
[408231312,1773273040500,-500.0,0.00019973,2]
[408231313,1773273040509,-500.0,0.00019973,2]
[408231314,1773273040518,-500.0,0.00019973,2]
[408231315,1773273040526,-575.89673691,0.00019973,2]
[408231316,1773273040535,-559.11659401,0.00019973,2]
[408231317,1773273040544,-500.0,0.00019973,2]
[408231318,1773273040553,-500.0,0.00019973,2]
[408231319,1773273040562,-500.0,0.00019973,2]